fUSD/lending_fUSD_20250720
["ID","MTS","AMOUNT","RATE_DAILY","PERIOD"]
[373377054,1752976256950,-480.0,0.00019287,2]
[373377055,1752976256959,-480.0,0.00019287,2]
[373377056,1752976256968,-1428.17,0.00019287,2]
[373377057,1752976256977,-1525.79,0.00019287,2]
[373377058,1752976256987,-1025.14,0.00019287,2]
[373377059,1752976256997,-1391.25,0.00019287,2]
[373377060,1752976257007,-601.74,0.00019287,2]
[373377061,1752976257018,-480.0,0.00019287,2]
[373377062,1752976257027,-1310.94,0.00019287,2]
[373377063,1752976257036,-725.67,0.00019287,2]
[373377064,1752976257045,-595.82,0.00019287,2]
[373377065,1752976257055,-4527.03,0.00019287,2]
[373377066,1752976257065,-2184.53,0.00019287,2]
[373377067,1752976257076,-2126.9,0.00019287,2]
[373377068,1752976257086,-753.76,0.00019287,2]
[373377069,1752976257096,-480.0,0.00019287,2]
[373377070,1752976257106,-480.0,0.00019287,2]
[373377071,1752976257115,-480.0,0.00019287,2]
[373377072,1752976257125,-1111.03,0.00019287,2]
[373377073,1752976257134,-480.0,0.00019287,2]
[373377074,1752976257143,-1996.48,0.00019287,2]
[373377075,1752976257153,-493.91,0.00019287,2]
[373377076,1752976257162,-1367.45,0.00019287,2]
[373377077,1752976257171,-480.0,0.00019287,2]
[373377078,1752976257180,-1080.26,0.00019287,2]
[373377079,1752976257190,-352.75155423,0.00019287,2]
[373377080,1752976257199,-480.0,0.00019287,2]
[373377081,1752976257208,-2492.25,0.00019287,2]
[373377082,1752976257217,-912.59,0.00019287,2]
[373377083,1752976257228,-799.59,0.00019287,2]
[373377084,1752976257238,-480.0,0.00019287,2]
[373377085,1752976257249,-480.0,0.00019287,2]
[373377086,1752976257259,-615.47,0.00019287,2]
[373377087,1752976257268,-1094.62,0.00019287,2]
[373377088,1752976257278,-623.82,0.00019287,2]
[373377089,1752976257287,-480.0,0.00019287,2]
[373377090,1752976257296,-1838.11,0.00019287,2]
[373377091,1752976257307,-940.07,0.00019287,2]
[373377092,1752976257318,-480.0,0.00019287,2]
[373377093,1752976257327,-282.685035,0.00019287,2]
[373377094,1752976257337,-282.685035,0.00019287,2]
[373377095,1752976257347,-828.57,0.00019287,2]
[373377096,1752976257357,-1831.8,0.00019287,2]
[373377097,1752976257366,-530.44,0.00019287,2]
[373377098,1752976257376,-780.91,0.00019287,2]
[373377099,1752976257385,-3807.6,0.00019287,2]
[373377100,1752976257394,-480.0,0.00019287,2]
[373377101,1752976257403,-1090.39,0.00019287,2]
[373377102,1752976257412,-817.08,0.00019287,2]
[373377103,1752976257420,-282.685035,0.00019287,2]
[373377104,1752976257429,-282.68504,0.00019287,2]
[373377105,1752976257438,-1199.84,0.00019287,2]
[373377106,1752976257447,-1353.58,0.00019287,2]
[373377107,1752976257456,-1586.5,0.00019287,2]
[373377108,1752976257465,-3572.48,0.00019287,2]
[373377109,1752976257474,-480.0,0.00019287,2]
[373377110,1752976257484,-1060.07,0.00019287,2]
[373377111,1752976257493,-593.71,0.00019287,2]
[373377112,1752976257502,-480.0,0.00019287,2]
[373377113,1752976257511,-563.35,0.00019287,2]
[373377114,1752976257523,-3199.5,0.00019287,2]
[373377115,1752976257532,-1809.22,0.00019287,2]
[373377116,1752976257541,-2678.64,0.00019287,2]
[373377117,1752976257550,-480.0,0.00019287,2]
[373377118,1752976257560,-658.01,0.00019287,2]
[373377119,1752976257569,-480.0,0.00019287,2]
[373377120,1752976257578,-152.875549,0.00019287,2]
[373377121,1752976257587,-486.49,0.00019287,2]
[373377122,1752976257597,-480.0,0.00019287,2]
[373377123,1752976257606,-1498.77,0.00019287,2]
[373377124,1752976257616,-502.09,0.00019287,2]
[373377125,1752976257625,-1075.2,0.00019287,2]
[373377126,1752976257634,-2493.97,0.00019287,2]
[373377127,1752976257643,-480.0,0.00019287,2]
[373377128,1752976257653,-480.0,0.00019287,2]
[373377129,1752976257662,-480.0,0.00019287,2]
[373377130,1752976257671,-256.53310039,0.00019287,2]
[373377131,1752976257680,-25128.97,0.00019287,2]
[373377132,1752976257689,-480.0,0.00019287,2]
[373377133,1752976257698,-480.0,0.00019287,2]
[373377134,1752976257707,-368.69368482,0.00019287,2]
[373377135,1752976257717,-1177.13,0.00019287,2]
[373377136,1752976257727,-480.0,0.00019287,2]
[373377137,1752976257736,-480.0,0.00019287,2]
[373377138,1752976257745,-480.0,0.00019287,2]
[373377139,1752976257754,-846.85,0.00019287,2]
[373377140,1752976257763,-480.0,0.00019287,2]
[373377141,1752976257774,-907.248053,0.00019287,2]
[373377142,1752976257783,-2908.89,0.00019287,2]
[373377143,1752976257791,-907.248053,0.00019287,2]
[373377144,1752976257800,-1121.62,0.00019287,2]
[373377145,1752976257809,-635.26,0.00019287,2]
[373377146,1752976257818,-480.0,0.00019287,2]
[373377147,1752976257827,-907.248053,0.00019287,2]
[373377148,1752976257836,-907.248056,0.00019287,2]
[373377149,1752976257845,-1290.05,0.00019287,2]
[373377150,1752976257855,-480.0,0.00019287,2]
[373377151,1752976257864,-480.0,0.00019287,2]
[373377152,1752976257873,-592.93,0.00019287,2]
[373377153,1752976257883,-1150.09,0.00019287,2]
[373377154,1752976257894,-480.0,0.00019287,2]
[373377155,1752976257904,-480.0,0.00019287,2]
[373377156,1752976257914,-453.49760057,0.00019287,2]
[373377157,1752976257923,-480.0,0.00019287,2]
[373377158,1752976257932,-1047.91,0.00019287,2]
[373377159,1752976257942,-740.5,0.00019287,2]
[373377160,1752976257951,-3391.53,0.00019287,2]
[373377161,1752976257960,-1383.0,0.00019287,2]
[373377162,1752976257969,-480.0,0.00019287,2]
[373377163,1752976257979,-480.0,0.00019287,2]
[373377164,1752976257988,-666.72,0.00019287,2]
[373377165,1752976257997,-1496.16,0.00019287,2]
[373377166,1752976258007,-480.0,0.00019287,2]
[373377167,1752976258016,-1167.58,0.00019287,2]
[373377168,1752976258026,-832.52,0.00019287,2]
[373377169,1752976258035,-6377.87,0.00019287,2]
[373377170,1752976258044,-480.0,0.00019287,2]
[373377171,1752976258053,-719.21,0.00019287,2]
[373377172,1752976258062,-1878.82,0.00019287,2]
[373377173,1752976258071,-480.0,0.00019287,2]
[373377174,1752976258080,-509.08,0.00019287,2]
[373377175,1752976258089,-150.0,0.00019297,2]
[373377176,1752976258098,-150.0,0.00019297,2]
[373377177,1752976258107,-150.0,0.00019297,2]
[373377178,1752976258116,-476.80070012,0.00019314,2]
[373377179,1752976258125,-160.0,0.00019314,2]
[373377180,1752976258134,-839.16344753,0.00019314,2]
[373377181,1752976258143,-210.82967408,0.00019314,2]
[373377182,1752976258152,-684.94354185,0.00019316,2]
[373377183,1752976258161,-1386.02,0.0001932,2]
[373377184,1752976258170,-219.0,0.00019325,2]
[373377185,1752976258179,-743.94457458,0.0001935,2]
[373377186,1752976258187,-500.0,0.00019352,2]
[373377187,1752976258196,-500.0,0.00019352,2]
[373377188,1752976258205,-4518.0,0.00019352,2]
[373377189,1752976258215,-664.0,0.00019352,2]
[373377190,1752976258223,-500.0,0.00019352,2]
[373377191,1752976258233,-150.0,0.00019352,2]
[373377192,1752976258243,-500.0,0.00019352,2]
[373377193,1752976258252,-500.0,0.00019352,2]
[373377194,1752976258263,-500.0,0.00019352,2]
[373377195,1752976258272,-150.0,0.00019352,2]
[373377196,1752976258281,-500.0,0.00019352,2]
[373377197,1752976258290,-1228.0,0.00019352,2]
[373377198,1752976258299,-500.0,0.00019352,2]
[373377199,1752976258309,-500.0,0.00019352,2]
[373377200,1752976258318,-1193.0,0.00019352,2]
[373377201,1752976258328,-150.0,0.00019352,2]
[373377202,1752976258337,-208.0,0.0001936,2]
[373377203,1752976258347,-123179.190221,0.00019371,2]
[373377204,1752976258356,-500.0,0.00019373,2]
[373377205,1752976258366,-500.6093395,0.00019373,2]
[373377206,1752976258375,-501.29359474,0.00019373,2]
[373377207,1752976258385,-555.5109164,0.00019373,2]
[373377208,1752976258394,-158.96970332,0.00019373,2]
[373377209,1752976258405,-500.0,0.00019373,2]
[373377210,1752976258414,-500.59874626,0.00019373,2]
[373377211,1752976258423,-501.59057719,0.00019373,2]
[373377212,1752976258432,-500.0,0.00019373,2]
[373377213,1752976258442,-502.7587231,0.00019373,2]
[373377214,1752976258454,-500.1579894,0.00019373,2]
[373377215,1752976258463,-502.4416259,0.00019373,2]
[373377216,1752976258473,-419.04,0.00019383,2]
[373377217,1752976258482,-659.62,0.00019383,2]
[373377218,1752976258490,-305.81222925,0.00019396,2]
[373377219,1752976258499,-659.62,0.00019396,2]
[373377220,1752976258508,-301.029415,0.00019397,2]
[373377221,1752976258517,-480.0,0.00019397,2]
[373377222,1752976258526,-480.0,0.00019397,2]
[373377223,1752976258535,-480.0,0.00019397,2]
[373377224,1752976258544,-480.0,0.00019397,2]
[373377225,1752976258553,-480.0,0.00019397,2]
[373377226,1752976258562,-480.0,0.00019397,2]
[373377227,1752976258571,-480.0,0.00019397,2]
[373377228,1752976258580,-309.53662301,0.00019397,2]
[373377229,1752976258589,-480.0,0.00019397,2]
[373377230,1752976258598,-480.0,0.00019397,2]
[373377231,1752976258607,-480.0,0.00019397,2]
[373377232,1752976258616,-480.0,0.00019397,2]
[373377233,1752976258626,-480.0,0.00019397,2]
[373377234,1752976258635,-480.0,0.00019397,2]
[373377235,1752976258645,-483.58847478,0.00019397,2]
[373377236,1752976258654,-480.0,0.00019397,2]
[373377237,1752976258663,-480.0,0.00019397,2]
[373377238,1752976258673,-480.0,0.00019397,2]
[373377239,1752976258682,-480.0,0.00019397,2]
[373377240,1752976258691,-480.0,0.00019397,2]
[373377241,1752976258700,-480.0,0.00019397,2]
[373377242,1752976258710,-480.0,0.00019397,2]
[373377243,1752976258719,-480.0,0.00019397,2]
[373377244,1752976258728,-480.0,0.00019397,2]
[373377245,1752976258738,-480.0,0.00019397,2]
[373377246,1752976258747,-480.0,0.00019397,2]
[373377247,1752976258756,-480.0,0.00019397,2]
[373377248,1752976258765,-480.0,0.00019397,2]
[373377249,1752976258775,-480.0,0.00019397,2]
[373377250,1752976258785,-480.0,0.00019397,2]
[373377251,1752976258794,-480.0,0.00019397,2]
[373377252,1752976258803,-480.0,0.00019397,2]
[373377253,1752976258812,-683.22,0.00019397,2]
[373377254,1752976258822,-480.0,0.00019397,2]
[373377255,1752976258831,-480.0,0.00019397,2]
[373377256,1752976258842,-4429.76,0.00019397,2]
[373377257,1752976258852,-480.0,0.00019397,2]
[373377258,1752976258861,-480.0,0.00019397,2]
[373377259,1752976258871,-480.0,0.00019397,2]
[373377260,1752976258880,-736.27,0.00019397,2]
[373377261,1752976258890,-480.0,0.00019397,2]
[373377262,1752976258901,-489.15,0.00019397,2]
[373377263,1752976258910,-480.0,0.00019397,2]
[373377264,1752976258920,-480.0,0.00019397,2]
[373377265,1752976258930,-617.9,0.00019397,2]
[373377266,1752976258939,-852.66,0.00019397,2]
[373377267,1752976258948,-899.62,0.00019397,2]
[373377268,1752976258957,-480.0,0.00019397,2]
[373377269,1752976258968,-480.0,0.00019397,2]
[373377270,1752976258978,-480.0,0.00019397,2]
[373377271,1752976258987,-480.0,0.00019397,2]
[373377272,1752976258996,-480.0,0.00019397,2]
[373377273,1752976259006,-480.0,0.00019397,2]
[373377274,1752976259015,-480.0,0.00019397,2]
[373377275,1752976259025,-852.03,0.00019397,2]
[373377276,1752976259035,-480.0,0.00019397,2]
[373377277,1752976259045,-480.0,0.00019397,2]
[373377278,1752976259054,-571.02,0.00019397,2]
[373377279,1752976259063,-519.26,0.00019397,2]
[373377280,1752976259073,-480.0,0.00019397,2]
[373377281,1752976259082,-480.0,0.00019397,2]
[373377282,1752976259092,-480.0,0.00019397,2]
[373377283,1752976259101,-554.7,0.00019397,2]
[373377284,1752976259111,-480.0,0.00019397,2]
[373377285,1752976259121,-480.0,0.00019397,2]
[373377286,1752976259130,-480.0,0.00019397,2]
[373377287,1752976259140,-483.57,0.00019397,2]
[373377288,1752976259150,-480.0,0.00019397,2]
[373377289,1752976259159,-480.0,0.00019397,2]
[373377290,1752976259168,-480.0,0.00019397,2]
[373377291,1752976259178,-515.03,0.00019397,2]
[373377292,1752976259187,-480.0,0.00019397,2]
[373377293,1752976259197,-480.0,0.00019397,2]
[373377294,1752976259207,-480.0,0.00019397,2]
[373377295,1752976259216,-480.0,0.00019397,2]
[373377296,1752976259226,-480.0,0.00019397,2]
[373377297,1752976259235,-480.0,0.00019397,2]
[373377298,1752976259245,-480.0,0.00019397,2]
[373377299,1752976259255,-480.0,0.00019397,2]
[373377300,1752976259264,-480.0,0.00019397,2]
[373377301,1752976259274,-480.0,0.00019397,2]
[373377302,1752976259284,-485.44,0.00019397,2]
[373377303,1752976259293,-480.0,0.00019397,2]
[373377304,1752976259303,-480.0,0.00019397,2]
[373377305,1752976259313,-670.56,0.00019397,2]
[373377306,1752976259322,-480.0,0.00019397,2]
[373377307,1752976259332,-480.0,0.00019397,2]
[373377308,1752976259341,-603.15908011,0.00019397,2]
[373377309,1752976259351,-480.0,0.00019397,2]
[373377310,1752976259361,-1489.32,0.00019397,2]
[373377311,1752976259371,-480.0,0.00019397,2]
[373377312,1752976259380,-480.0,0.00019397,2]
[373377313,1752976259390,-480.0,0.00019397,2]
[373377314,1752976259401,-480.0,0.00019397,2]
[373377315,1752976259410,-642.45,0.00019397,2]
[373377316,1752976259419,-590.0,0.00019397,2]
[373377317,1752976259429,-890.19,0.00019397,2]
[373377318,1752976259439,-480.0,0.00019397,2]
[373377319,1752976259449,-480.0,0.00019397,2]
[373377320,1752976259458,-480.0,0.00019397,2]
[373377321,1752976259468,-515.91,0.00019397,2]
[373377322,1752976259478,-480.0,0.00019397,2]
[373377323,1752976259488,-480.0,0.00019397,2]
[373377324,1752976259497,-480.0,0.00019397,2]
[373377325,1752976259506,-480.0,0.00019397,2]
[373377326,1752976259516,-480.0,0.00019397,2]
[373377327,1752976259526,-701.81,0.00019397,2]
[373377328,1752976259535,-480.0,0.00019397,2]
[373377329,1752976259545,-480.0,0.00019397,2]
[373377330,1752976259554,-789.0,0.00019397,2]
[373377331,1752976259564,-480.0,0.00019397,2]
[373377332,1752976259574,-480.0,0.00019397,2]
[373377333,1752976259583,-480.0,0.00019397,2]
[373377334,1752976259593,-480.0,0.00019397,2]
[373377335,1752976259602,-865.92,0.00019397,2]
[373377336,1752976259612,-480.0,0.00019397,2]
[373377337,1752976259621,-651.34,0.00019397,2]
[373377338,1752976259631,-480.0,0.00019397,2]
[373377339,1752976259641,-480.0,0.00019397,2]
[373377340,1752976259651,-480.0,0.00019397,2]
[373377341,1752976259660,-480.0,0.00019397,2]
[373377342,1752976259670,-529.8,0.00019397,2]
[373377343,1752976259679,-480.0,0.00019397,2]
[373377344,1752976259689,-480.0,0.00019397,2]
[373377345,1752976259698,-480.0,0.00019397,2]
[373377346,1752976259707,-480.0,0.00019397,2]
[373377347,1752976259717,-480.0,0.00019397,2]
[373377348,1752976259726,-460.989115,0.00019397,2]
[373377349,1752976259735,-928.55,0.00019397,2]
[373377350,1752976259744,-638.96,0.00019397,2]
[373377351,1752976259754,-480.0,0.00019397,2]
[373377352,1752976259763,-480.0,0.00019397,2]
[373377353,1752976259774,-480.0,0.00019397,2]
[373377354,1752976259783,-837.49,0.00019397,2]
[373377355,1752976259793,-480.0,0.00019397,2]
[373377356,1752976259803,-443.937646,0.00019397,2]
[373377357,1752976259812,-344.869005,0.00019397,2]
[373377358,1752976259822,-480.0,0.00019397,2]
[373377359,1752976259831,-480.0,0.00019397,2]
[373377360,1752976259841,-480.0,0.00019397,2]
[373377361,1752976259850,-480.0,0.00019397,2]
[373377362,1752976259859,-480.0,0.00019397,2]
[373377363,1752976259869,-1118.56,0.00019397,2]
[373377364,1752976259879,-653.65,0.00019397,2]
[373377365,1752976259888,-480.0,0.00019397,2]
[373377366,1752976259899,-480.0,0.00019397,2]
[373377367,1752976259909,-480.0,0.00019397,2]
[373377368,1752976259918,-2196.41,0.00019397,2]
[373377369,1752976259928,-567.75,0.00019397,2]
[373377370,1752976259937,-480.0,0.00019397,2]
[373377371,1752976259947,-310.72057595,0.00019397,2]
[373377372,1752976259956,-574.8,0.00019397,2]
[373377373,1752976259966,-480.0,0.00019397,2]
[373377374,1752976259975,-480.0,0.00019397,2]
[373377375,1752976259984,-480.0,0.00019397,2]
[373377376,1752976259994,-480.0,0.00019397,2]
[373377377,1752976260003,-660.8,0.00019397,2]
[373377378,1752976260013,-480.0,0.00019397,2]
[373377379,1752976260024,-480.0,0.00019397,2]
[373377380,1752976260034,-740.35,0.00019397,2]
[373377381,1752976260044,-480.0,0.00019397,2]
[373377382,1752976260055,-480.0,0.00019397,2]
[373377383,1752976260065,-658.91,0.00019397,2]
[373377384,1752976260075,-480.0,0.00019397,2]
[373377385,1752976260084,-746.47,0.00019397,2]
[373377386,1752976260094,-480.0,0.00019397,2]
[373377387,1752976260104,-1099.72,0.00019397,2]
[373377388,1752976260114,-480.0,0.00019397,2]
[373377389,1752976260123,-480.0,0.00019397,2]
[373377390,1752976260133,-480.0,0.00019397,2]
[373377391,1752976260143,-480.0,0.00019397,2]
[373377392,1752976260153,-480.0,0.00019397,2]
[373377393,1752976260163,-1615.6,0.00019397,2]
[373377394,1752976260173,-584.86,0.00019397,2]
[373377395,1752976260183,-408.28205805,0.00019397,2]
[373377396,1752976260192,-1035.72,0.00019397,2]
[373377397,1752976260211,-480.0,0.00019397,2]
[373377398,1752976260221,-480.0,0.00019397,2]
[373377399,1752976260230,-600.4,0.00019397,2]
[373377400,1752976260240,-480.0,0.00019397,2]
[373377401,1752976260250,-480.0,0.00019397,2]
[373377402,1752976260259,-541.69,0.00019397,2]
[373377403,1752976260270,-480.0,0.00019397,2]
[373377404,1752976260281,-480.0,0.00019397,2]
[373377405,1752976260290,-480.0,0.00019397,2]
[373377406,1752976260299,-480.0,0.00019397,2]
[373377407,1752976260309,-480.0,0.00019397,2]
[373377408,1752976260320,-480.0,0.00019397,2]
[373377409,1752976260330,-1389.76,0.00019397,2]
[373377410,1752976260340,-560.26,0.00019397,2]
[373377411,1752976260350,-480.0,0.00019397,2]
[373377412,1752976260359,-480.0,0.00019397,2]
[373377413,1752976260369,-534.49,0.00019397,2]
[373377414,1752976260379,-3006.49,0.00019397,2]
[373377415,1752976260389,-480.0,0.00019397,2]
[373377416,1752976260399,-480.0,0.00019397,2]
[373377417,1752976260408,-480.0,0.00019397,2]
[373377418,1752976260418,-480.0,0.00019397,2]
[373377419,1752976260428,-5337.74,0.00019397,2]
[373377420,1752976260438,-480.0,0.00019397,2]
[373377421,1752976260449,-480.0,0.00019397,2]
[373377422,1752976260459,-480.0,0.00019397,2]
[373377423,1752976260469,-480.0,0.00019397,2]
[373377424,1752976260479,-394.81235859,0.00019397,2]
[373377425,1752976260489,-480.0,0.00019397,2]
[373377426,1752976260499,-545.87,0.00019397,2]
[373377427,1752976260509,-476.8404131,0.00019397,2]
[373377428,1752976260519,-480.0,0.00019397,2]
[373377429,1752976260531,-480.0,0.00019397,2]
[373377430,1752976260541,-480.0,0.00019397,2]
[373377431,1752976260552,-1043.97,0.00019397,2]
[373377432,1752976260561,-3359.24,0.00019397,2]
[373377433,1752976260571,-480.0,0.00019397,2]
[373377434,1752976260580,-575.63,0.00019397,2]
[373377435,1752976260590,-614.60331579,0.00019397,2]
[373377436,1752976260600,-480.0,0.00019397,2]
[373377437,1752976260609,-1971.95,0.00019397,2]
[373377438,1752976260619,-525.14,0.00019397,2]
[373377439,1752976260629,-480.0,0.00019397,2]
[373377440,1752976260639,-977.88,0.00019397,2]
[373377441,1752976260649,-480.0,0.00019397,2]
[373377442,1752976260658,-637.77,0.00019397,2]
[373377443,1752976260668,-480.0,0.00019397,2]
[373377444,1752976260677,-253.12796538,0.00019397,2]
[373377445,1752976260687,-994.88,0.00019397,2]
[373377446,1752976260696,-480.0,0.00019397,2]
[373377447,1752976260706,-480.0,0.00019397,2]
[373377448,1752976260716,-1041.68,0.00019397,2]
[373377449,1752976260932,-480.0,0.00019397,2]
[373377450,1752976260943,-682.51,0.00019397,2]
[373377451,1752976260952,-550.63,0.00019397,2]
[373377452,1752976260962,-4039.7,0.00019397,2]
[373377453,1752976260975,-480.0,0.00019397,2]
[373377454,1752976260993,-2203.38,0.00019397,2]
[373377455,1752976261003,-480.0,0.00019397,2]
[373377456,1752976261013,-1000.08,0.00019397,2]
[373377457,1752976261024,-497.79691809,0.00019397,2]
[373377458,1752976261033,-480.0,0.00019397,2]
[373377459,1752976261043,-1033.57,0.00019397,2]
[373377460,1752976261052,-480.0,0.00019397,2]
[373377461,1752976261062,-480.0,0.00019397,2]
[373377462,1752976261071,-480.0,0.00019397,2]
[373377463,1752976261080,-615.08,0.00019397,2]
[373377464,1752976261090,-955.87,0.00019397,2]
[373377465,1752976261100,-480.0,0.00019397,2]
[373377466,1752976261110,-480.0,0.00019397,2]
[373377467,1752976261120,-480.0,0.00019397,2]
[373377468,1752976261133,-480.0,0.00019397,2]
[373377469,1752976261143,-540.57,0.00019397,2]
[373377470,1752976261153,-780.95,0.00019397,2]
[373377471,1752976261163,-2257.53,0.00019397,2]
[373377472,1752976261172,-480.0,0.00019397,2]
[373377473,1752976261183,-480.0,0.00019397,2]
[373377474,1752976261193,-480.0,0.00019397,2]
[373377475,1752976261204,-480.0,0.00019397,2]
[373377476,1752976261214,-480.0,0.00019397,2]
[373377477,1752976261223,-852.91,0.00019397,2]
[373377478,1752976261233,-480.0,0.00019397,2]
[373377479,1752976261244,-480.0,0.00019397,2]
[373377480,1752976261254,-480.0,0.00019397,2]
[373377481,1752976261263,-809.87,0.00019397,2]
[373377482,1752976261274,-2870.66,0.00019397,2]
[373377483,1752976261283,-480.0,0.00019397,2]
[373377484,1752976261292,-480.0,0.00019397,2]
[373377485,1752976261303,-1118.31,0.00019397,2]
[373377486,1752976261313,-480.0,0.00019397,2]
[373377487,1752976261323,-740.37,0.00019397,2]
[373377488,1752976261333,-803.87,0.00019397,2]
[373377489,1752976261344,-958.33,0.00019397,2]
[373377490,1752976261354,-480.0,0.00019397,2]
[373377491,1752976261363,-504.19,0.00019397,2]
[373377492,1752976261372,-3397.86,0.00019397,2]
[373377493,1752976261382,-480.0,0.00019397,2]
[373377494,1752976261391,-657.26,0.00019397,2]
[373377495,1752976261402,-480.0,0.00019397,2]
[373377496,1752976261411,-681.07,0.00019397,2]
[373377497,1752976261422,-480.0,0.00019397,2]
[373377498,1752976261431,-2540.68,0.00019397,2]
[373377499,1752976261441,-1355.38,0.00019397,2]
[373377500,1752976261450,-718.35,0.00019397,2]
[373377501,1752976261460,-910.21,0.00019397,2]
[373377502,1752976261469,-480.0,0.00019397,2]
[373377503,1752976261479,-480.0,0.00019397,2]
[373377504,1752976261489,-330.81920266,0.00019397,2]
[373377505,1752976261499,-756.72,0.00019397,2]
[373377506,1752976261508,-9103.88,0.00019397,2]
[373377507,1752976261518,-2862.65,0.00019397,2]
[373377508,1752976261529,-4774.77,0.00019397,2]
[373377509,1752976261538,-526.73,0.00019397,2]
[373377510,1752976261547,-1208.73,0.00019397,2]
[373377511,1752976261558,-480.0,0.00019397,2]
[373377512,1752976261567,-480.0,0.00019397,2]
[373377513,1752976261577,-1838.65,0.00019397,2]
[373377514,1752976261587,-491.55910293,0.00019397,2]
[373377515,1752976261596,-590.22,0.00019397,2]
[373377516,1752976261605,-480.0,0.00019397,2]
[373377517,1752976261615,-1636.51,0.00019397,2]
[373377518,1752976261625,-455.67806951,0.00019397,2]
[373377519,1752976261635,-480.0,0.00019397,2]
[373377520,1752976261644,-1063.68,0.00019397,2]
[373377521,1752976261654,-561.21,0.00019397,2]
[373377522,1752976261663,-480.0,0.00019397,2]
[373377523,1752976261672,-852.7,0.00019397,2]
[373377524,1752976261682,-480.0,0.00019397,2]
[373377525,1752976261691,-569.95,0.00019397,2]
[373377526,1752976261700,-6268.06,0.00019397,2]
[373377527,1752976261710,-1041.51,0.00019397,2]
[373377528,1752976261719,-480.0,0.00019397,2]
[373377529,1752976261729,-1298.99,0.00019397,2]
[373377530,1752976261738,-480.0,0.00019397,2]
[373377531,1752976261747,-666.13,0.00019397,2]
[373377532,1752976261756,-3960.08,0.00019397,2]
[373377533,1752976261766,-480.0,0.00019397,2]
[373377534,1752976261778,-480.0,0.00019397,2]
[373377535,1752976261787,-1948.59,0.00019397,2]
[373377536,1752976261796,-480.0,0.00019397,2]
[373377537,1752976261805,-1291.96,0.00019397,2]
[373377538,1752976261815,-1040.82,0.00019397,2]
[373377539,1752976261823,-480.0,0.00019397,2]
[373377540,1752976261832,-1249.23,0.00019397,2]
[373377541,1752976261842,-1601.14,0.00019397,2]
[373377542,1752976261852,-480.0,0.00019397,2]
[373377543,1752976261862,-696.63,0.00019397,2]
[373377544,1752976261872,-480.0,0.00019397,2]
[373377545,1752976261883,-1184.75,0.00019397,2]
[373377546,1752976261892,-480.0,0.00019397,2]
[373377547,1752976261905,-480.0,0.00019397,2]
[373377548,1752976261915,-880.33,0.00019397,2]
[373377549,1752976261924,-480.0,0.00019397,2]
[373377550,1752976261934,-646.35,0.00019397,2]
[373377551,1752976261944,-480.0,0.00019397,2]
[373377552,1752976261953,-880.58,0.00019397,2]
[373377553,1752976261963,-671.42,0.00019397,2]